fUST/lending_fUST_20240525
["ID","MTS","AMOUNT","RATE_DAILY","PERIOD"]
[327919458,1716625887108,-500.0,0.00032876,2]
[327919459,1716625887118,-500.0,0.00032876,2]
[327919460,1716625887127,-500.0,0.00032876,2]
[327919461,1716625887137,-500.0,0.00032876,2]
[327919462,1716625887146,-350.0,0.00032876,2]
[327919463,1716625887155,-500.0,0.00032876,2]
[327919464,1716625887164,-500.0,0.00032876,2]
[327919465,1716625887174,-500.0,0.00032876,2]
[327919466,1716625887183,-562.45893395,0.00032876,2]
[327919467,1716625887192,-562.45893395,0.00032876,2]
[327919468,1716625887201,-500.0,0.00032876,2]
[327919469,1716625887210,-562.45893395,0.00032876,2]
[327919470,1716625887219,-562.45893395,0.00032876,2]
[327919471,1716625887228,-562.45893395,0.00032876,2]
[327919472,1716625887237,-500.0,0.00032876,2]
[327919473,1716625887247,-562.45893395,0.00032876,2]
[327919474,1716625887255,-267.90227759,0.00032876,2]
[327919475,1716625887265,-562.45893395,0.00032876,2]
[327919476,1716625887274,-500.0,0.00032876,2]
[327919477,1716625887284,-562.45893395,0.00032876,2]
[327919478,1716625887293,-562.45893395,0.00032876,2]
[327919479,1716625887303,-562.45893395,0.00032876,2]
[327919480,1716625887312,-562.45893395,0.00032876,2]
[327919481,1716625887321,-562.45893395,0.00032876,2]
[327919482,1716625887330,-562.45893395,0.00032876,2]
[327919483,1716625887339,-3476.80897297,0.00032876,2]
[327919484,1716625887348,-562.45893395,0.00032876,2]
[327919485,1716625887357,-562.45893395,0.00032876,2]
[327919486,1716625887366,-562.45893395,0.00032876,2]
[327919487,1716625887374,-562.45893395,0.00032876,2]
[327919488,1716625887384,-3476.80897297,0.00032876,2]
[327919489,1716625887393,-562.45893395,0.00032876,2]
[327919490,1716625887402,-562.45893395,0.00032876,2]
[327919491,1716625887411,-3476.80897297,0.00032876,2]
[327919492,1716625887421,-562.45893395,0.00032876,2]
[327919493,1716625887430,-562.45893395,0.00032876,2]
[327919494,1716625887440,-3476.80897297,0.00032876,2]
[327919495,1716625887449,-341.78062281,0.00032876,2]
[327919496,1716625887458,-3476.80897297,0.00032876,2]
[327919497,1716625887467,-3476.80897297,0.00032876,2]
[327919498,1716625887476,-3476.80897297,0.00032876,2]
[327919499,1716625887485,-500.0,0.00032876,2]
[327919500,1716625887494,-3476.80897297,0.00032876,2]
[327919501,1716625887503,-3476.80897297,0.00032876,2]
[327919502,1716625887512,-3476.80897297,0.00032876,2]
[327919503,1716625887522,-500.0,0.00032876,2]
[327919504,1716625887530,-3476.80897297,0.00032876,2]
[327919505,1716625887540,-3476.80897297,0.00032876,2]
[327919506,1716625887549,-3476.80897297,0.00032876,2]
[327919507,1716625887558,-3476.80897297,0.00032876,2]
[327919508,1716625887567,-3476.80897297,0.00032876,2]
[327919509,1716625887576,-3476.80897297,0.00032876,2]
[327919510,1716625887586,-3476.80897297,0.00032876,2]
[327919511,1716625887595,-3476.80897297,0.00032876,2]
[327919512,1716625887604,-3476.80897297,0.00032876,2]
[327919513,1716625887613,-3476.80897297,0.00032876,2]
[327919514,1716625887622,-3476.80897297,0.00032876,2]
[327919515,1716625887631,-554.07138845,0.00032876,2]
[327919516,1716625887640,-554.07138845,0.00032876,2]
[327919517,1716625887649,-554.07138845,0.00032876,2]
[327919518,1716625887658,-554.07138845,0.00032876,2]
[327919519,1716625887667,-554.07138845,0.00032876,2]
[327919520,1716625887676,-3516.19469962,0.00032876,2]
[327919521,1716625887687,-3516.19469962,0.00032876,2]
[327919522,1716625887698,-3516.19469962,0.00032876,2]
[327919523,1716625887708,-3516.19469962,0.00032876,2]
[327919524,1716625887717,-3516.19469962,0.00032876,2]
[327919525,1716625887727,-3516.19469962,0.00032876,2]
[327919526,1716625887737,-3516.19469962,0.00032876,2]
[327919527,1716625887746,-3516.19469962,0.00032876,2]
[327919528,1716625887756,-3516.19469962,0.00032876,2]
[327919529,1716625887766,-3591.97475779,0.00032876,2]
[327919530,1716625887776,-3591.97475779,0.00032876,2]
[327919531,1716625887788,-3591.97475779,0.00032876,2]
[327919532,1716625887798,-3591.97475779,0.00032876,2]
[327919533,1716625887807,-188.75082435,0.00032876,2]
[327919534,1716625887817,-424.00609566,0.00032876,2]
[327919535,1716625887831,-500.0,0.00032876,2]
[327919536,1716625887840,-217.28197251,0.00032876,2]
[327919537,1716625887849,-239.85082234,0.00032876,2]
[327919538,1716625887859,-230.68555546,0.00032876,2]
[327919539,1716625888009,-2250.44605498,0.00032876,2]
[327919540,1716625888019,-2250.44605498,0.00032876,2]
[327919541,1716625888029,-2250.44605498,0.00032876,2]
[327919542,1716625888039,-500.0,0.00032876,2]
[327919543,1716625888049,-2250.44605498,0.00032876,2]
[327919544,1716625888058,-191.42127793,0.00032876,2]
[327919545,1716625888068,-500.0,0.00032876,2]
[327919546,1716625888077,-2250.44605498,0.00032876,2]
[327919547,1716625888087,-2250.44605498,0.00032876,2]
[327919548,1716625888096,-500.0,0.00032876,2]
[327919549,1716625888106,-2250.44605498,0.00032876,2]
[327919550,1716625888115,-2250.44605498,0.00032876,2]
[327919551,1716625888125,-2250.44605498,0.00032876,2]
[327919552,1716625888136,-196.25153207,0.00032876,2]
[327919553,1716625888146,-500.78042806,0.00032876,2]
[327919554,1716625888156,-500.0,0.00032876,2]
[327919555,1716625888166,-365.93778614,0.00032876,2]
[327919556,1716625888175,-173.08186964,0.00032876,2]
[327919557,1716625888186,-407.59299656,0.00032876,2]
[327919558,1716625888195,-500.0,0.00032876,2]
[327919559,1716625888205,-500.0,0.00032876,2]
[327919560,1716625888214,-600.0,0.00032876,2]
[327919561,1716625888224,-215.83584107,0.00032876,2]
[327919562,1716625888233,-600.0,0.00032876,2]
[327919563,1716625888243,-500.0,0.00032876,2]
[327919564,1716625888252,-500.0,0.00032876,2]
[327919565,1716625888262,-341.2642079,0.00032876,2]
[327919566,1716625888271,-500.0,0.00032876,2]
[327919567,1716625888281,-199.52793554,0.00032876,2]
[327919568,1716625888290,-500.0,0.00032876,2]
[327919569,1716625888300,-500.0,0.00032876,2]
[327919570,1716625888309,-202.37926237,0.00032876,2]
[327919571,1716625888319,-500.0,0.00032876,2]
[327919572,1716625888328,-500.0,0.00032876,2]
[327919573,1716625888337,-301.81672039,0.00032876,2]
[327919574,1716625888347,-472.5,0.00032876,2]
[327919575,1716625888356,-500.0,0.00032876,2]
[327919576,1716625888366,-210.86901825,0.00032876,2]
[327919577,1716625888375,-500.0,0.00032876,2]
[327919578,1716625888385,-399.86753509,0.00032876,2]
[327919579,1716625888394,-651.28077579,0.00032876,2]
[327919580,1716625888404,-500.0,0.00032876,2]
[327919581,1716625888413,-237.08244606,0.00032876,2]
[327919582,1716625888423,-500.0,0.00032876,2]
[327919583,1716625888433,-332.34431142,0.00032876,2]
[327919584,1716625888444,-165.44155356,0.00032876,2]
[327919585,1716625888453,-300.0,0.00032876,2]
[327919586,1716625888462,-1124.3991656,0.000329,2]
[327919587,1716625888472,-1533.5809133,0.00032978,33]
[327919588,1716625888481,-11628.88,0.00032993,2]
[327919589,1716625888489,-11628.88,0.00032993,2]
[327919590,1716625888498,-11628.88,0.00032993,2]
[327919591,1716625888507,-11628.88,0.00032993,2]
[327919592,1716625888516,-11628.88,0.00032993,2]
[327919593,1716625888526,-11628.88,0.00032993,2]
[327919594,1716625888535,-11628.88,0.00032993,2]
[327919595,1716625888544,-11628.88,0.00032993,2]
[327919596,1716625888553,-11628.88,0.00032993,2]
[327919597,1716625888562,-3761.6417659,0.00032997,39]
[327919598,1716625888571,-820.70125026,0.00033,4]
[327919599,1716625888580,-1000.0,0.00033,44]
[327919600,1716625888589,-5099.0,0.00033,30]
[327919601,1716625888598,-9520.76886264,0.00033,10]
[327919602,1716625888607,-3944.13,0.00033,7]
[327919603,1716625888616,-1501.0639756,0.00033,15]
[327919604,1716625888625,-466.0,0.00033,10]
[327919605,1716625888635,-500.0,0.00033,7]
[327919606,1716625888643,-500.0,0.00033,7]
[327919607,1716625888653,-500.0,0.00033,7]
[327919608,1716625888662,-500.0,0.00033,7]
[327919609,1716625888671,-500.0,0.00033,7]
[327919610,1716625888681,-500.0,0.00033,7]
[327919611,1716625888691,-500.0,0.00033,7]
[327919612,1716625888700,-500.0,0.00033,7]
[327919613,1716625888710,-500.0,0.00033,7]
[327919614,1716625888723,-500.0,0.00033,7]
[327919615,1716625888732,-500.0,0.00033,7]
[327919616,1716625888742,-500.0,0.00033,7]
[327919617,1716625888752,-500.0,0.00033,7]
[327919618,1716625888762,-500.0,0.00033,7]
[327919619,1716625888772,-500.0,0.00033,7]
[327919620,1716625888781,-500.0,0.00033,7]
[327919621,1716625888791,-500.0,0.00033,7]
[327919622,1716625888801,-388.0,0.00033,7]
[327919623,1716625888810,-838.0,0.00033,2]
[327919624,1716625888820,-230.19,0.00033,30]
[327919625,1716625888835,-490.85545481,0.00033,2]
[327919626,1716625888844,-227.0,0.00033,2]
[327919627,1716625888854,-227.0,0.00033,2]
[327919628,1716625888864,-998.0,0.00033178,7]
[327919629,1716625888873,-998.0,0.00033178,7]
[327919630,1716625888882,-998.0,0.00033178,7]
[327919631,1716625888892,-998.0,0.00033178,7]
[327919632,1716625888904,-998.0,0.00033178,7]
[327919633,1716625888914,-998.0,0.00033178,7]
[327919634,1716625888924,-998.0,0.00033178,7]
[327919635,1716625888933,-998.0,0.00033178,7]
[327919636,1716625888943,-998.0,0.00033178,7]
[327919637,1716625888953,-998.0,0.00033178,7]
[327919638,1716625888962,-998.0,0.00033178,7]
[327919639,1716625888972,-998.0,0.00033178,7]
[327919640,1716625888981,-998.0,0.00033178,7]
[327919641,1716625888991,-998.0,0.00033178,7]
[327919642,1716625889000,-998.0,0.00033178,7]
[327919643,1716625889010,-998.0,0.00033178,7]
[327919644,1716625889019,-998.0,0.00033178,7]
[327919645,1716625889029,-998.0,0.00033178,7]
[327919646,1716625889038,-452.51576723,0.00033178,7]
[327919647,1716625889048,-200.0,0.00033299,120]
[327919648,1716625889058,-58162.91455046,0.000334,2]
[327919649,1716625889068,-227.53290328,0.00033424,2]
[327919650,1716625889077,-32874.63773295,0.0003348,30]
[327919651,1716625889087,-3147.04,0.000335,2]
[327919652,1716625889097,-3147.04,0.000335,2]
[327919653,1716625889106,-3147.04,0.000335,2]
[327919654,1716625889116,-3147.04,0.000335,2]
[327919655,1716625889126,-3147.04,0.000335,2]
[327919656,1716625889135,-3147.04,0.000335,2]
[327919657,1716625889145,-3147.04,0.000335,2]
[327919658,1716625889155,-3147.04,0.000335,2]
[327919659,1716625889165,-3147.04,0.000335,2]
[327919660,1716625889174,-3147.04,0.000335,2]
[327919661,1716625889184,-3147.04,0.000335,2]
[327919662,1716625889195,-3147.04,0.000335,2]
[327919663,1716625889204,-3147.04,0.000335,2]
[327919664,1716625889214,-3147.04,0.000335,2]
[327919665,1716625889223,-3147.04,0.000335,2]
[327919666,1716625889233,-3147.04,0.000335,2]
[327919667,1716625889242,-3147.04,0.000335,2]
[327919668,1716625889252,-3147.04,0.000335,2]
[327919669,1716625889262,-3147.04,0.000335,2]
[327919670,1716625889272,-3147.04,0.000335,2]
[327919671,1716625889282,-3147.04,0.000335,2]
[327919672,1716625889292,-3147.04,0.000335,2]
[327919673,1716625889301,-3147.04,0.000335,2]
[327919674,1716625889311,-3147.04,0.000335,2]
[327919675,1716625889320,-3147.04,0.000335,2]
[327919676,1716625889330,-3147.04,0.000335,2]
[327919677,1716625889340,-3147.04,0.000335,2]
[327919678,1716625889350,-3147.04,0.000335,2]
[327919679,1716625889359,-3147.04,0.000335,2]
[327919680,1716625889369,-3147.04,0.000335,2]
[327919681,1716625889379,-3147.04,0.000335,2]
[327919682,1716625889388,-3147.04,0.000335,2]
[327919683,1716625889397,-3147.04,0.000335,2]
[327919684,1716625889406,-3147.04,0.000335,2]
[327919685,1716625889416,-3147.04,0.000335,2]
[327919686,1716625889425,-3147.04,0.000335,2]
[327919687,1716625889435,-3147.04,0.000335,2]
[327919688,1716625889446,-3147.04,0.000335,2]
[327919689,1716625889456,-3147.04,0.000335,2]
[327919690,1716625889465,-3147.04,0.000335,2]
[327919691,1716625889474,-3147.04,0.000336,2]
[327919692,1716625889484,-3147.04,0.000336,2]
[327919693,1716625889493,-3147.04,0.000336,2]
[327919694,1716625889502,-3147.04,0.000336,2]
[327919695,1716625889512,-3147.04,0.000336,2]
[327919696,1716625889521,-3147.04,0.000336,2]
[327919697,1716625889530,-3147.04,0.000336,2]
[327919698,1716625889540,-3147.04,0.000336,2]
[327919699,1716625889549,-3147.04,0.000336,2]
[327919700,1716625889558,-3147.04,0.000336,2]
[327919701,1716625889568,-3147.04,0.000336,2]
[327919702,1716625889577,-3147.04,0.000336,2]
[327919703,1716625889587,-3147.04,0.000336,2]
[327919704,1716625889596,-3147.04,0.000336,2]
[327919705,1716625889606,-3147.04,0.000336,2]
[327919706,1716625889615,-3147.04,0.000336,2]
[327919707,1716625889624,-3147.04,0.000336,2]
[327919708,1716625889634,-3147.04,0.000336,2]
[327919709,1716625889644,-3147.04,0.000336,2]
[327919710,1716625889653,-3147.04,0.000336,2]
[327919711,1716625889663,-3147.04,0.000336,2]
[327919712,1716625889673,-3147.04,0.000336,2]
[327919713,1716625889683,-3147.04,0.000336,2]
[327919714,1716625889694,-3147.04,0.000336,2]
[327919715,1716625889703,-3147.04,0.000336,2]
[327919716,1716625889713,-3147.04,0.000336,2]
[327919717,1716625889723,-3147.04,0.000336,2]
[327919718,1716625889733,-3147.04,0.000336,2]
[327919719,1716625889742,-3147.04,0.000336,2]
[327919720,1716625889753,-3147.04,0.000336,2]
[327919721,1716625889764,-3147.04,0.000336,2]
[327919722,1716625889774,-3147.04,0.000336,2]
[327919723,1716625889784,-3147.04,0.000336,2]
[327919724,1716625889794,-3147.04,0.000336,2]
[327919725,1716625889804,-3147.04,0.000336,2]
[327919726,1716625889814,-3147.04,0.000336,2]
[327919727,1716625889828,-3147.04,0.000336,2]
[327919728,1716625889838,-3147.04,0.000336,2]
[327919729,1716625889848,-3147.04,0.000336,2]
[327919730,1716625889858,-3147.04,0.000336,2]
[327919731,1716625889870,-3026.97335961,0.000336,3]
[327919732,1716625889882,-3027.27575455,0.000336,3]
[327919733,1716625889892,-9223.16230285,0.00033603,2]
[327919748,1716626396344,1215.41378794,0.00028,120]
[327919750,1716626564519,220.0,0.000275,30]
[327919753,1716626709926,292.60141023,6.748e-05,2]
[327919758,1716626840153,-758.31809387,7.072e-05,2]
[327919759,1716626840176,-179.11240261,7.072e-05,2]
[327919760,1716626840197,-285.31097948,7.073e-05,2]
[327919761,1716626840225,-524.20444586,7.073e-05,2]
[327919762,1716626840246,-315.32564656,7.074e-05,2]
[327919763,1716626840267,-2599.89847911,7.074e-05,2]
[327919764,1716626840289,-564.04401672,7.081e-05,2]
[327919765,1716626904728,156.55408668,7e-05,2]
[327919766,1716626914108,179.11240261,7e-05,2]
[327919767,1716626916986,164.28466186,7e-05,2]
[327919768,1716626917376,524.20444586,7e-05,2]
[327919769,1716626919602,155.30722237,7e-05,2]
[327919770,1716626920870,3375.61311874,7e-05,2]
[327919771,1716626939043,224.70364529,7e-05,2]
[327919772,1716626944770,613.75592385,7e-05,2]
[327919773,1716626950235,2091.43127022,7e-05,2]
[327919774,1716626958966,274.18094634,7e-05,2]
[327919775,1716626964157,2094.86492846,7e-05,2]
[327919805,1716627033269,-156.55408668,7.001e-05,2]
[327919807,1716627033278,-161.20630966,7.081e-05,2]
[327919808,1716627033289,-627.69348329,7.237e-05,2]
[327919810,1716627033298,-2557.1193376,7.237e-05,2]
[327919812,1716627033308,-690.25856071,7.237e-05,2]
[327919815,1716627033316,-165.60389485,7.237e-05,2]
[327919817,1716627033338,-214.73098202,7.237e-05,2]
[327919820,1716627033348,-179.11240261,7.237e-05,2]
[327919821,1716627033358,-422.56881529,7.237e-05,2]
[327919823,1716627033368,-164.28466186,7.237e-05,2]
[327919826,1716627033378,-367.11646023,7.238e-05,2]
[327919828,1716627033387,-155.68701513,7.238e-05,2]
[327919829,1716627033397,-188.46107161,7.238e-05,2]
[327919832,1716627033407,-528.2030178,7.238e-05,2]
[327919834,1716627033417,-2254.17272175,7.24e-05,2]
[327919836,1716627033426,-24900.0,7.397e-05,2]
[327919838,1716627033435,-208.85280418,8.823e-05,2]
[327919840,1716627033445,-280.26541644,8.823e-05,2]
[327919842,1716627033454,-525.21994947,8.825e-05,2]
[327919844,1716627033463,-1808.90715257,8.998e-05,2]
[327919846,1716627033472,-65435.14643569,8.999e-05,2]
[327919892,1716627038802,-470.40053833,8.909e-05,2]
[327919894,1716627038814,-129.71273613,8.909e-05,2]
[327919896,1716627038824,-2672.88354838,8.999e-05,2]
[327919898,1716627038833,-4423.35405057,0.0001,2]
[327920049,1716627041571,-389.40873566,0.0001,2]
[327920105,1716627046657,-5029.96535193,0.0001,2]
[327920114,1716627643534,3368.91429053,0.00033358,120]
[327920116,1716627798957,320.0,0.000333,120]
[327920118,1716627899339,1311.08570947,0.00031777,120]
[327920120,1716628025184,-154.87609912,9.998e-05,2]
[327920121,1716628025205,-164.28466186,9.999e-05,2]
[327920122,1716628025226,-179.11240261,9.999e-05,2]
[327920123,1716628025246,-416.6779966,0.00010865,2]
[327920124,1716628025267,-6109.03117049,0.00012878,2]
[327920188,1716628238035,-1058.862999,0.00012878,2]
[327920226,1716628243180,-6191.24372,0.00012878,2]
[327920300,1716629252147,-156.55408668,8.836e-05,2]
[327920301,1716629252170,-154.87609912,8.837e-05,2]
[327920302,1716629252191,-164.28466186,8.837e-05,2]
[327920303,1716629252212,-160.52254234,8.837e-05,2]
[327920393,1716629437991,-154.87609912,8.747e-05,2]
[327920395,1716629438002,-179.11240261,8.748e-05,2]
[327920397,1716629438012,-179.11240261,8.75e-05,2]
[327920399,1716629438022,-2750.61073188,8.938e-05,2]
[327920470,1716629441222,-150.23622046,8.938e-05,2]
[327920471,1716629441232,-547.09377954,8.938e-05,2]
[327920497,1716629624174,7066.46,0.0001,10]
[327920514,1716630241749,-179.11240261,7.603e-05,2]
[327920515,1716630241774,-164.28466186,7.604e-05,2]
[327920516,1716630241798,-179.11240261,7.605e-05,2]
[327920517,1716630241823,-20681.49053292,7.68e-05,2]
[327920522,1716630450174,-5226.21406421,7.397e-05,2]
[327920544,1716630633902,-726.27965151,7.306e-05,2]
[327920545,1716630633915,-1873.6188276,7.306e-05,2]
[327920546,1716630633926,-1666.21736129,7.307e-05,2]
[327920547,1716630633936,-164.28466186,7.38e-05,2]
[327920548,1716630633946,-10518.35727372,7.38e-05,2]
[327920549,1716630633956,-154.87609912,7.381e-05,2]
[327920550,1716630633967,-1511.34126217,7.381e-05,2]
[327920551,1716630633978,-179.11240261,7.382e-05,2]
[327920552,1716630633988,-1497.86344925,7.382e-05,2]
[327920553,1716630633999,-524.20444586,7.383e-05,2]
[327920554,1716630634011,-772.8946628,7.383e-05,2]
[327920555,1716630634020,-43731.38420322,7.384e-05,2]
[327920556,1716630634032,-545.87563572,7.384e-05,2]
[327920557,1716630634044,-697.37,7.384e-05,2]
[327920632,1716630643375,-524.20444586,7.305e-05,2]
[327920633,1716630643384,-1470.12440011,7.31e-05,2]
[327920634,1716630643394,-23133.40014513,7.384e-05,2]
[327920635,1716630643404,-155.86906444,7.388e-05,2]
[327920636,1716630643413,-13026.04000352,7.397e-05,2]
[327920637,1716630643482,-484.05143741,7.397e-05,2]
[327920762,1716630646491,-927.20229121,7.397e-05,2]
[327920766,1716631048006,178.52,0.00028,120]
[327920769,1716631327695,652.4519146,6.417e-05,2]
[327920770,1716631386621,9888.93402289,6.417e-05,2]
[327920771,1716631428712,268.35429996,0.00013596,7]
[327920772,1716631617028,250.0,5.38e-05,2]
[327920773,1716631637111,-2116.44274717,6.337e-05,2]
[327920774,1716631637132,-1511.34126217,6.338e-05,2]
[327920775,1716631637153,-154.87609912,6.338e-05,2]
[327920776,1716631637173,-179.11240261,6.339e-05,2]
[327920777,1716631637194,-154.87609912,6.339e-05,2]
[327920778,1716631637215,-281.80268381,6.339e-05,2]
[327920779,1716631637236,-164.28466186,6.34e-05,2]
[327920780,1716631637256,-285.31097948,6.34e-05,2]
[327920781,1716631637275,-158.67086264,6.34e-05,2]
[327920782,1716631637295,-449.59564134,6.348e-05,2]
[327920783,1716631637315,-410.15192489,6.413e-05,2]
[327920784,1716631637335,-155.68701513,6.414e-05,2]
[327920785,1716631637370,-1001.82995134,6.415e-05,2]
[327920786,1716631639479,493.5227513,5.386e-05,2]
[327920787,1716631655174,1516.4926498,5.642e-05,2]
[327920788,1716631679573,6438.6597943,5.687e-05,2]
[327920789,1716631706601,164.28466186,6.35e-05,2]
[327920790,1716631707591,154.87609912,6.35e-05,2]
[327920791,1716631710222,8242.17944472,5.687e-05,2]
[327920792,1716631710254,11024.87350675,5.687e-05,2]
[327920793,1716631711914,3375.61311874,5.687e-05,2]
[327920794,1716631726450,19267.05295147,5.687e-05,2]
[327920795,1716631727918,3375.61311874,5.687e-05,2]
[327920796,1716631742218,8544.36844061,5.687e-05,2]
[327920797,1716631747093,-179.11240261,6.35e-05,2]
[327920798,1716631747115,-1511.34126217,6.35e-05,2]
[327920799,1716631747137,-370.52444559,6.351e-05,2]
[327920800,1716631747158,-285.31097948,6.413e-05,2]
[327920801,1716631747181,-280.26541644,6.413e-05,2]
[327920802,1716631747202,-830.65857966,6.413e-05,2]
[327920803,1716631747222,-164.28466186,6.413e-05,2]
[327920804,1716631747242,-154.87609912,6.413e-05,2]
[327920805,1716631747261,-528.2030178,6.413e-05,2]
[327920806,1716631747281,-290.71666045,6.414e-05,2]
[327920807,1716631747308,-225.09954874,6.414e-05,2]
[327920808,1716631747334,-67106.20003273,6.415e-05,2]
[327920809,1716631747354,-32647.58401878,6.416e-05,2]
[327920810,1716631747375,-406.31765597,6.417e-05,2]
[327920811,1716631747396,-11098.35895947,6.417e-05,2]
[327920812,1716631751919,3375.61311874,5.687e-05,2]
[327920813,1716631824727,12947.4559285,5.687e-05,2]
[327920814,1716631829003,154.86062544,5.687e-05,2]
[327920883,1716631832797,-962.52810551,6.414e-05,2]
[327920886,1716631832807,-1895.27931477,6.415e-05,2]
[327920889,1716631832817,-1497.86344925,6.416e-05,2]
[327920892,1716631832826,-129.92087865,6.417e-05,2]
[327920895,1716631832836,-1976.49243137,6.417e-05,2]
[327920898,1716631832846,-234.35329789,6.417e-05,2]
[327920901,1716631832855,-8072.52990652,7.319e-05,2]
[327920904,1716631832865,-242.02620768,7.396e-05,2]
[327920907,1716631832876,-24900.0,7.397e-05,2]
[327920910,1716631832886,-758.31809387,7.601e-05,2]
[327920913,1716631832895,-2091.43127022,7.68e-05,2]
[327920916,1716631832906,-154.87609912,8.654e-05,2]
[327920919,1716631832920,-155.04478637,9.998e-05,2]
[327920922,1716631832930,-15000.0,0.0001,2]
[327920925,1716631832940,-3929.48126109,0.0001,2]
[327920928,1716631832950,-2698.03082965,0.00010167,2]
[327920931,1716631832959,-417.64867022,0.00010726,2]
[327920934,1716631832969,-4224.07535635,0.00010829,2]
[327920937,1716631832978,-416.26912126,0.00010859,2]
[327920940,1716631832987,-151.0,0.00010959,2]
[327920943,1716631832996,-151.0,0.00010959,2]
[327920946,1716631833005,-151.0,0.00010959,2]
[327920948,1716631833015,-195.642232,0.00010959,2]
[327920950,1716631833024,-576.98,0.00010959,2]
[327920952,1716631833033,-291.96717459,0.00011249,2]
[327920954,1716631833043,-765.61966012,0.00012749,2]
[327920956,1716631833052,-525.21994947,0.00013596,2]
[327920957,1716631833062,-208.85280418,0.00013596,2]
[327920959,1716631833072,-804.72182729,0.00013596,2]
[327920960,1716631833081,-282.16597113,0.00013596,2]
[327920962,1716631833090,-264.8105875,0.00013596,2]
[327920964,1716631833101,-155.34816039,0.00013596,2]
[327920965,1716631833110,-169.58658304,0.00013596,2]
[327920967,1716631833119,-193.54836123,0.00013596,2]
[327920968,1716631833128,-302.23323508,0.00013596,2]
[327920969,1716631833138,-156.01706031,0.00013596,2]
[327920970,1716631833149,-156.01203017,0.00013596,2]
[327920971,1716631833159,-1351.48664572,0.00013596,2]
[327920972,1716631833169,-3633.92034182,0.00013596,2]
[327920973,1716631833178,-154.87609912,0.00013596,2]
[327920974,1716631833188,-151.0,0.00013596,2]
[327920975,1716631833197,-151.0,0.00013596,2]
[327920976,1716631833207,-6102.89991307,0.00013597,2]
[327920977,1716631833216,-151.0,0.00013597,2]
[327920978,1716631833226,-151.0,0.00013598,2]
[327920979,1716631833236,-158.76374989,0.000136,2]
[327920980,1716631833246,-151.0,0.00013699,2]
[327920981,1716631833255,-151.0,0.00013699,2]
[327920982,1716631833264,-151.0,0.00013699,2]
[327920983,1716631833274,-243.107888,0.00013699,2]
[327920984,1716631833284,-151.0,0.00013699,2]
[327920985,1716631833293,-151.0,0.00013699,2]
[327920986,1716631833302,-151.0,0.00013699,2]
[327920987,1716631833311,-151.0,0.00013699,2]
[327920988,1716631833321,-151.0,0.00013699,2]
[327920989,1716631833331,-219.346626,0.00013699,2]
[327920990,1716631833340,-151.0,0.00013699,2]
[327920991,1716631833349,-151.0,0.00013699,2]
[327920992,1716631833358,-151.0,0.00013699,2]
[327920993,1716631833367,-151.0,0.00013699,2]
[327920994,1716631833376,-151.0,0.00013699,2]
[327920995,1716631833386,-151.0,0.00013699,2]
[327920996,1716631833395,-151.0,0.00013699,2]
[327920997,1716631833405,-516.754571,0.00013699,2]
[327920998,1716631833415,-151.0,0.00013699,2]
[327920999,1716631833423,-516.754571,0.00013699,2]
[327921000,1716631833433,-516.754571,0.00013699,2]
[327921001,1716631833443,-516.754571,0.00013699,2]
[327921002,1716631833452,-516.754571,0.00013699,2]
[327921003,1716631833462,-516.754571,0.00013699,2]
[327921004,1716631833472,-516.754571,0.00013699,2]
[327921005,1716631833482,-516.754571,0.00013699,2]
[327921006,1716631833491,-516.754571,0.00013699,2]
[327921007,1716631833500,-516.754571,0.00013699,2]
[327921008,1716631833510,-516.754571,0.00013699,2]
[327921009,1716631833519,-516.754571,0.00013699,2]
[327921010,1716631833528,-151.0,0.00013699,2]
[327921011,1716631833537,-151.0,0.00013699,2]
[327921012,1716631833546,-151.0,0.00013699,2]
[327921013,1716631833556,-151.0,0.00013699,2]
[327921014,1716631833565,-362.869505,0.00013699,2]
[327921015,1716631833574,-151.0,0.00013699,2]